{"text_format":"1","workbook":"xlsx","n_sheets":6,"sheets":["Dépenses Personnel","Equipements","Autres dépenses ","Dépenses_Contribution en nature","Récapitulatif","Feuil1"],"not_rendered":{"charts":0,"images":0,"macros":1,"external_links":0,"defined_names":11,"comments":0,"pivot_tables":0},"unopened":[],"bounds":{"document_bytes":16777216,"sheet_cells":100000,"rows_first":2000,"rows_last":500,"rows_between":2000,"halvings":0,"cell_chars":16384,"cell_head_chars":4096},"cells_cut":0,"cells_raw":0,"read":"whole","date_system":"1900"}

{"sheet":"Dépenses Personnel","index":0,"n_rows":35,"n_cols":8,"rows_kept":35,"cut":false,"hidden":false,"merged":[[29,1,29,3],[28,1,28,3],[27,1,27,3],[25,1,25,3],[0,0,0,7],[5,0,5,7],[6,0,6,7],[20,5,20,6],[14,0,15,0],[14,3,15,3],[14,4,15,4],[26,1,26,3],[31,0,31,2],[32,0,32,2],[30,5,30,6],[32,5,32,6],[2,1,2,7],[3,1,3,7],[14,1,14,2],[14,5,15,5],[14,7,15,7],[24,7,25,7],[24,0,25,0],[24,6,25,6],[14,6,15,6],[24,4,25,4],[24,5,25,5],[24,1,24,3]]}
["RECHERCHE ET SOCIETE(S)                                                                                                                                                             ANNEXE 4 (à déposer aux formats EXCEL et PDF)"]
[]
["Intitulé du projet :"]
["Nom du porteur :"]
[]
["PLAN DE FINANCEMENT SUR LA DUREE DU PROJET"]
["Dépenses de personnel"]
[]
["La saisie des données se fait dans les parties grisées des différentes feuilles."]
["Veuillez vous reporter au règlement pour connaître le détail des dépenses éligibles."]
[null,null,{"$f":"IF(ISBLANK(D12),\"Veuillez renseigner la durée du projet (entre 12 et 36 mois) avant de remplir les tableaux ci-dessous\",\"\")","v":"Veuillez renseigner la durée du projet (entre 12 et 36 mois) avant de remplir les tableaux ci-dessous"}]
[null,null,"Durée du projet (en mois) ->"]
["PERSONNEL PERMANENT"]
["Saisir une ligne par personne"]
["P.P.","Personnel permanent",null,"Salaire annuel brut chargé (€)\n(1)","Nombre d'heures annuelles travaillées\n(2)\n","Activité annuelle liée à l'opération\n(moyenne annuelle d'heures consacrées à l'opération sur la durée du projet *)\n(3)","Part de l'activité liée à l'opération\n(4) = (3)/(2)","Dépenses liées à l'opération\nMontant € HT\n(5)=(4)*(1)*nb d'années du projet"]
[null,"Agent/Salarié \n(nom, prénom)\n","Type de fonction\n(Maître de conférence, professeur, ingénieur de recherche, technicien..)\nTutelle employeur"]
["Nom du laboratoire",null,null,null,null,null,{"$f":"IF(ISBLANK(F17),,F17/E17)","v":0},{"$f":"ROUNDDOWN(G17*D17*$D$12/12,0)","v":0}]
["Nom du laboratoire",null,null,null,null,null,{"$f":"IF(ISBLANK(F18),,F18/E18)","v":0},{"$f":"ROUNDDOWN(G18*D18*$D$12/12,0)","v":0}]
["Nom du laboratoire",null,null,null,null,null,0,0]
["Nom du laboratoire",null,null,null,null,null,0,0]
[null,null,null,null,null,"Sous-total personnel permanent",null,{"$f":"SUM(H17:H20)","v":0}]
[]
["PERSONNEL CONTRACTUEL EMBAUCHE SUR LE PROJET"]
["Saisir une ligne par personne"]
["P.C.","Personnel embauché sur le projet",null,null,"Salaire annuel brut chargé\n(1)","Durée du contrat en mois (2)","Part de l'activité (3) directement liée au projet\n(si affecté à temps plein au projet précisez \"100%\", si affecté à mi-temps précisez \"50%\")","Dépenses liées à l'opération\nMontant € HT\n= (1)*(2)*(3)/12"]
[null,"Type de fonction\n(Stagiaire, personnel technique, post-doc,...)\nTutelle employeur"]
["Nom du laboratoire",null,null,null,null,null,null,{"$f":"ROUNDDOWN(IF(ISBLANK(G27),,(E27*F27*G27)/12),0)","v":0}]
["Nom du laboratoire",null,null,null,null,null,null,{"$f":"ROUNDDOWN(IF(ISBLANK(G28),,(E28*F28*G28)/12),0)","v":0}]
["Nom du laboratoire",null,null,null,null,null,null,0]
["Nom du laboratoire",null,null,null,null,null,null,0]
[null,null,null,null,null,"Sous-total personnel embauché",null,{"$f":"SUM(H27:H30)","v":0}]
[]
["\n   ",null,null,null,null,"Total HT dépenses personnels",null,{"$f":"(H21+H31)","v":0}]
[]
[null,null,null,null,null,"Frais Généraux (15% des dépenses de personnel)",null,{"$f":"ROUNDDOWN(0.15*H33,0)","v":0}]

{"sheet":"Equipements","index":1,"n_rows":22,"n_cols":6,"rows_kept":22,"cut":false,"hidden":false,"merged":[[0,0,0,5],[2,1,2,5],[3,1,3,5],[9,7,9,8],[5,0,5,5],[6,0,6,5]]}
["RECHERCHE ET SOCIETE(S)                                                                                                                                                             ANNEXE 4         "]
[]
["Intitulé du projet :",{"$f":"'Dépenses Personnel'!B3:H3","v":0}]
["Nom du porteur :",{"$f":"'Dépenses Personnel'!B4:H4","v":0}]
[]
["PLAN DE FINANCEMENT SUR LA DUREE DU PROJET"]
["Dépenses d'équipements"]
[]
["La saisie des données se fait dans les parties grisées des différentes feuilles."]
["Veuillez vous reporter au règlement pour connaître le détail des dépenses éligibles."]
[]
["EQUIPEMENTS"]
[]
["Eqts","Nature de l'équipement ","Tutelle supportant la dépense","Lot(s) de travail associé(s) *","Détailler les bases de calcul **","Montant HT"]
["Nom du laboratoire"]
["Nom du laboratoire"]
["Nom du laboratoire"]
["Nom du laboratoire"]
[null,null,null,null,"Total Equipements",{"$f":"ROUNDDOWN(SUM(F15:F18),0)","v":0}]
[]
["* Lot de travail associé : précisez dans quel lot de travail cet équipement ou cette prestation est prévu."]
["** Bases de calcul : devis, prix catalogue, …"]

{"sheet":"Autres dépenses ","index":2,"n_rows":37,"n_cols":6,"rows_kept":37,"cut":false,"hidden":false,"merged":[[27,0,27,1],[8,7,8,8],[10,0,10,1],[0,0,0,5],[2,1,2,5],[3,1,3,5],[5,0,5,5],[6,0,6,5],[18,0,18,3]]}
["RECHERCHE ET SOCIETE(S)                                                                                                                                                             ANNEXE 4       "]
[]
["Intitulé du projet :",{"$f":"'Dépenses Personnel'!B3:H3","v":0}]
["Nom du porteur :",{"$f":"'Dépenses Personnel'!B4:H4","v":0}]
[]
["PLAN DE FINANCEMENT SUR LA DUREE DU PROJET"]
["Autres Dépenses"]
["La saisie des données se fait dans les parties grisées des différentes feuilles."]
["Veuillez vous reporter au règlement pour connaître le détail des dépenses éligibles."]
[]
["Consommables et petits matériels scientifiques"]
[]
["CSM","Nature des consommables/petits matériels scientifiques","Tutelle supportant la dépense","Lot(s) de travail associé(s) *","Détailler les bases de calcul **\n(fournir si nécessaire un document annexe précisant les méthodes de calcul)","Montant HT"]
["Nom du laboratoire"]
["Nom du laboratoire"]
["Nom du laboratoire"]
[null,null,null,null,"Total Consommables/petits matériels scientifiques",{"$f":"ROUNDDOWN(SUM(F14:F16),0)","v":0}]
[]
["Prestations (Prestations internes, Prestations externes, Etudes, sous-traitance, …)"]
[]
["PRST","Type de prestations","Tutelle supportant la dépense","Lot(s) de travail associé(s) *","Détailler les bases de calcul **\n(fournir si nécessaire un document annexe précisant les méthodes de calcul)","Montant HT"]
["Nom du laboratoire"]
["Nom du laboratoire"]
["Nom du laboratoire"]
[null,null,null,null,"Total Prestations",{"$f":"ROUNDDOWN(SUM(F22:F24),0)","v":0}]
[]
[]
["Frais de Missions (déplacements et hébergement)"]
[]
["FDM","Type de déplacements, nature des dépenses","Tutelle supportant la dépense","Lot(s) de travail associé(s) *","Détailler les bases de calcul **\n(fournir si nécessaire un document annexe précisant les méthodes de calcul)","Montant HT"]
["Nom du laboratoire"]
["Nom du laboratoire"]
["Nom du laboratoire"]
[null,null,null,null,"Total Frais de Missions",{"$f":"ROUNDDOWN(SUM(F31:F33),0)","v":0}]
[]
["* Lot de travail associé : précisez dans quel lot de travail cet équipement ou cette prestation est prévu."]
["** Bases de calcul : devis, prix catalogue, …"]

{"sheet":"Dépenses_Contribution en nature","index":3,"n_rows":23,"n_cols":4,"rows_kept":23,"cut":false,"hidden":false,"merged":[[0,0,0,3],[5,0,5,3],[6,0,6,3],[2,1,2,3],[3,1,3,3]]}
["RECHERCHE ET SOCIETE(S)                                                                                                                                                             ANNEXE 4                "]
[]
["Intitulé du projet :",{"$f":"'Dépenses Personnel'!B3:F3","v":0}]
["Nom du porteur :",{"$f":"'Dépenses Personnel'!B4:F4","v":0}]
[]
["PLAN DE FINANCEMENT SUR LA DUREE DU PROJET"]
["Contribution en nature (Uniquement apportée par les partenaires privés)"]
[]
["La saisie des données se fait dans les parties grisées des différentes feuilles."]
["Veuillez vous reporter au règlement pour connaître le détail des dépenses éligibles."]
[]
["Entreprises","Nature de la contribution en nature *","Détailler les bases de calcul **","Montant estimé HT"]
["Nom de l'entreprise"]
["Nom de l'entreprise"]
["Nom de l'entreprise"]
["Nom de l'entreprise"]
["Nom de l'entreprise"]
[null,null,"Total contribution en nature ",{"$f":"ROUNDDOWN(SUM(D13:D17),0)","v":0}]
[]
["Ces contributions en nature seront comptabilisés en dépenses et en ressources dans le récapitulatif"]
[]
["* mise à disposition de personnel ou d'équipement, don de consommables ou d'équipements, etc."]
["** pour les mises à disposition de personnel, la base  de calcul doit être le salaire brut chargé"]

{"sheet":"Récapitulatif","index":4,"n_rows":54,"n_cols":4,"rows_kept":54,"cut":false,"hidden":false,"merged":[[48,0,48,2],[7,0,7,3],[2,1,2,5],[3,1,3,5],[5,0,5,5],[27,1,27,2],[24,0,24,2],[25,0,25,2],[11,1,11,2],[11,0,12,0],[27,0,28,0],[9,0,9,2]]}
["RECHERCHE ET SOCIETE(S)                 ",null,null,"ANNEXE 4              "]
[]
["Intitulé du projet :",{"$f":"'Dépenses Personnel'!B3:F3","v":0}]
["Nom du porteur :",{"$f":"'Dépenses Personnel'!B4:F4","v":0}]
[]
["PLAN DE FINANCEMENT SUR LA DUREE DU PROJET"]
[]
[]
[]
["RECAPITULATIF DES DEPENSES PREVISIONNELLES"]
[]
["Postes de dépenses","TOTAL"]
[null,"€","%"]
["Personnels permanents",{"$f":"'Dépenses Personnel'!H21","v":0},{"$f":"IFERROR(IF(ISBLANK(B14),,B14/$B$22),0)","v":0}]
["Personnels contractuels recrutés sur le projet",{"$f":"'Dépenses Personnel'!H31","v":0},0]
["Equipements",{"$f":"Equipements!F19","v":0},0]
["Consommables et petits matériels scientifiques",{"$f":"'Autres dépenses '!F17","v":0},0]
["Prestations (couts d'accès plateforme, études, sous-traitance)",{"$f":"'Autres dépenses '!F25","v":0},0]
["Frais de mission",{"$f":"'Autres dépenses '!F34","v":0},0]
["Frais généraux (forfait 15%)",{"$f":"IF(ISBLANK('Dépenses Personnel'!H33),,0.15*('Dépenses Personnel'!H33))","v":0},0]
["Contribution en nature",{"$f":"'Dépenses_Contribution en nature'!D18","v":0},0]
["Dépenses totales",{"$f":"ROUNDDOWN(SUM(B14:B21),0)","v":0}]
[]
[]
["RECAPITULATIF DES RECETTES PREVISIONNELLES"]
["Veuillez renseigner les champs grisés"]
[]
["Recettes","TOTAL"]
[null,"€","%"]
["1. Total des aides publiques",{"$f":"ROUNDDOWN(B31+B32,0)","v":0},{"$f":"IFERROR(IF(ISBLANK(B30),,B30/$B$47),0)","v":0}]
["Région Occitanie",null,{"$f":"IFERROR(IF(ISBLANK(B31),,B31/$B$47),0)","v":0}]
["Autres financements publics (à préciser)",null,{"$f":"IFERROR(IF(ISBLANK(B32),,B32/$B$47),0)","v":0}]
["2. Total apport financier privé direct",{"$f":"ROUNDDOWN(SUM(B34:B38),0)","v":0},0]
["Entreprise 1 (à préciser)",null,0]
["Entreprise 2 (à préciser)",null,0]
["Entreprise 3 (à préciser)",null,0]
["Entreprise 4 (à préciser)",null,0]
["Entreprise 5 (à préciser)",null,0]
["3. Total autofinancement",{"$f":"ROUNDDOWN(B40,0)","v":0},0]
["Fonds propres",null,0]
["4.Total contribution en nature ",{"$f":"ROUNDDOWN(IF((ISBLANK(B42:B46)),,SUM(B42:B46)),0)","v":0},0]
[{"$f":"'Dépenses_Contribution en nature'!A13","v":"Nom de l'entreprise"},{"$f":"'Dépenses_Contribution en nature'!D13","v":0},0]
[{"$f":"'Dépenses_Contribution en nature'!A14","v":"Nom de l'entreprise"},{"$f":"'Dépenses_Contribution en nature'!D14","v":0},0]
[{"$f":"'Dépenses_Contribution en nature'!A15","v":"Nom de l'entreprise"},{"$f":"'Dépenses_Contribution en nature'!D15","v":0},0]
[{"$f":"'Dépenses_Contribution en nature'!A16","v":"Nom de l'entreprise"},{"$f":"'Dépenses_Contribution en nature'!D16","v":0},0]
[{"$f":"'Dépenses_Contribution en nature'!A17","v":"Nom de l'entreprise"},{"$f":"'Dépenses_Contribution en nature'!D17","v":0},0]
["Total des ressources (1+2+3+4)",{"$f":"B30+B33+B39+B41","v":0}]
[]
["RAPPEL : "]
["Taux maximum d'aide Région volet 1 : 50% de l'assiette éligible"]
["Taux maximum d'aide Région volet 2 : 70% de l'assiette éligible"]
["Taux maximal d'aide publique : 80%"]
["L'aide régionale est plafonnée à 250K€ par projet et ne peut excéder le coût marginal du projet (cf règlement)"]
["Le plan de financement doit être équilibré en dépenses et ressources"]

{"sheet":"Feuil1","index":5,"n_rows":101,"n_cols":1,"rows_kept":101,"cut":false,"hidden":false,"merged":[]}
[0]
[0.01]
[0.02]
[0.03]
[0.04]
[0.05]
[0.06]
[7.0000000000000007E-2]
[0.08]
[0.09]
[0.1]
[0.11]
[0.12]
[0.13]
[0.14000000000000001]
[0.15]
[0.16]
[0.17]
[0.18]
[0.19]
[0.2]
[0.21]
[0.22]
[0.23]
[0.24]
[0.25]
[0.26]
[0.27]
[0.28000000000000003]
[0.28999999999999998]
[0.3]
[0.31]
[0.32]
[0.33]
[0.34]
[0.35]
[0.36]
[0.37]
[0.38]
[0.39]
[0.4]
[0.41]
[0.42]
[0.43]
[0.44]
[0.45]
[0.46]
[0.47]
[0.48]
[0.49]
[0.5]
[0.51]
[0.52]
[0.53]
[0.54]
[0.55000000000000004]
[0.56000000000000005]
[0.56999999999999995]
[0.57999999999999996]
[0.59]
[0.6]
[0.61]
[0.62]
[0.63]
[0.64]
[0.65]
[0.66]
[0.67]
[0.68]
[0.69]
[0.7]
[0.71]
[0.72]
[0.73]
[0.74]
[0.75]
[0.76]
[0.77]
[0.78]
[0.79]
[0.8]
[0.81]
[0.82]
[0.83]
[0.84]
[0.85]
[0.86]
[0.87]
[0.88]
[0.89]
[0.9]
[0.91]
[0.92]
[0.93]
[0.94]
[0.95]
[0.96]
[0.97]
[0.98]
[0.99]
[1]